bitfinex/quotes_ETHUSD_20240917
["timestamp","ask_amount","ask_price","bid_price","bid_amount"]
[1726590033390,0.040137,2376.0,2375.7,4.27482175]
[1726590033887,0.040137,2376.0,2375.9,8.41786]
[1726590034393,0.040137,2376.0,2375.9,8.48331159]
[1726590035201,0.040137,2376.0,2375.7,4.20914]
[1726590035384,0.040137,2376.0,2375.9,0.06545159]
[1726590035548,0.040137,2376.0,2375.8,0.06322667]
[1726590036145,0.8858657,2376.0,2375.9,0.06319207]
[1726590036346,0.8858657,2376.0,2375.6,4.20944]
[1726590036564,0.8858657,2376.0,2375.5,4.20963]
[1726590036887,0.8858657,2376.0,2375.7,4.20918]
[1726590037063,0.040137,2376.0,2375.7,4.20918]
[1726590037397,0.040137,2376.0,2375.8,0.0611735]
[1726590037791,0.040137,2376.0,2375.7,4.20918]
[1726590038012,0.040137,2376.0,2375.8,4.2702735]
[1726590038175,0.040137,2376.0,2375.8,8.4792735]
[1726590038381,0.040137,2376.0,2375.8,0.0611735]
[1726590038566,4.248987,2376.0,2375.4,4.20969]
[1726590038760,4.2092,2375.8,2375.5,0.06127734]
[1726590038995,4.2092,2375.8,2375.3,4.20988]
[1726590039178,4.2092,2375.8,2375.6,0.06122634]
[1726590039383,4.2092,2375.8,2375.1,4.21019]
[1726590039579,0.040137,2376.0,2375.2,0.06136891]
[1726590039580,5.58680381,2375.9,2375.2,0.06136891]
[1726590039782,5.58680381,2375.9,2374.9,4.21057]
[1726590039783,4.20941,2375.7,2374.9,4.21057]
[1726590040120,4.20948,2375.6,2375.1,4.21033]
[1726590040275,4.20965,2375.5,2375.0,4.21043]
[1726590040473,4.20965,2375.5,2375.2,0.06136891]
[1726590040673,0.420965,2375.4,2375.0,4.21052]
[1726590040986,0.420965,2375.4,2375.0,4.2104]
[1726590041312,0.420965,2375.4,2375.1,0.06143626]
[1726590042007,0.98357008,2375.8,2374.8,4.21075]
[1726590042188,4.20946,2375.6,2375.2,0.06140164]
[1726590042513,0.98357008,2375.8,2375.1,4.21026]
[1726590042712,0.74446101,2375.7,2375.1,4.21026]
[1726590043024,0.040137,2376.0,2375.1,4.21033]
[1726590043186,0.040137,2376.0,2375.6,4.20945]
[1726590043366,0.040137,2376.0,2375.7,0.06124903]
[1726590043568,5.0946897,2376.0,2375.4,4.20969]
[1726590043774,5.0946897,2376.0,2375.8,0.06121442]
[1726590043994,0.8858597,2376.0,2375.5,4.20961]
[1726590044187,0.8858597,2376.0,2375.6,0.06128364]
[1726590044188,0.040137,2376.0,2375.6,0.06128364]
[1726590044413,0.040137,2376.0,2375.4,4.20965]
[1726590044728,0.040137,2376.0,2375.7,0.06124903]
[1726590044896,0.040137,2376.0,2375.5,4.20956]
[1726590045086,5.0946457,2376.0,2375.5,4.27087825]
[1726590045785,4.20893,2375.9,2375.5,0.06131825]
[1726590046447,4.20946,2375.6,2375.5,0.06131825]
[1726590046590,9.260806,2375.6,2375.5,0.06131825]
[1726590046790,4.21006,2375.3,2374.8,4.2108]
[1726590047026,4.21006,2375.3,2374.9,0.061526]
[1726590047187,4.21006,2375.3,2374.7,4.21102]
[1726590047392,8.42017,2375.3,2374.8,0.06156064]
[1726590047689,5.052077,2375.3,2374.7,4.21102]
[1726590047890,0.87423624,2375.6,2374.9,0.061526]
[1726590047891,5.08371624,2375.6,2374.9,0.061526]
[1726590048098,4.21065,2375.0,2374.8,0.06156064]
[1726590048341,4.20983,2375.4,2374.2,4.21184]
[1726590048342,4.2107,2374.9,2374.2,4.21184]
[1726590048640,4.21131,2374.6,2374.1,4.2121]
[1726590048803,4.21151,2374.5,2374.0,4.2122]
[1726590049005,4.21207,2374.2,2373.6,4.21288]
[1726590049223,4.21161,2374.4,2373.9,4.21244]
[1726590049419,4.21161,2374.4,2373.7,4.21272]
[1726590049420,4.21194,2374.2,2373.7,4.21272]
[1726590049737,4.21194,2374.2,2373.7,4.2127]
[1726590049916,4.21177,2374.3,2373.7,4.2127]
[1726590050318,4.21221,2374.1,2373.6,4.2129]
[1726590050493,4.21221,2374.1,2373.5,4.21303]
[1726590050696,4.21249,2373.9,2373.4,4.21335]
[1726590051034,4.21249,2373.9,2373.1,0.040137]
[1726590051035,4.21249,2373.9,2373.2,4.21367]
[1726590051238,4.21273,2373.8,2373.2,4.21367]
[1726590051555,4.21249,2373.9,2373.2,4.21357]
[1726590051556,4.21291,2373.7,2373.2,4.21357]
[1726590051730,4.21291,2373.7,2373.2,8.42719]
[1726590052252,4.21288,2373.7,2373.2,4.21357]
[1726590053560,4.21288,2373.7,2373.2,8.42717]
[1726590053872,4.21177,2374.3,2373.8,4.21261]
[1726590054082,4.21212,2374.1,2373.5,4.21301]
[1726590054658,4.2123,2374.0,2373.5,4.21301]
[1726590054820,4.21212,2374.1,2373.6,4.21287]
[1726590055269,5.20206707,2374.1,2373.5,4.21301]
[1726590055419,4.21246,2374.0,2373.5,4.21301]
[1726590055673,6.07630331,2374.1,2373.6,4.21288]
[1726590055964,0.87423624,2373.9,2373.6,0.0628371]
[1726590056268,1.86418331,2374.1,2373.7,4.21274]
[1726590056567,5.08618624,2374.2,2373.7,0.06280243]
[1726590056916,0.87423624,2374.2,2373.7,0.06280243]
[1726590057349,5.08612624,2374.3,2373.8,4.21264]
[1726590057665,0.82037705,2374.2,2373.9,0.0627331]
[1726590057875,4.21212,2374.1,2373.9,0.0627331]
[1726590058019,0.87423624,2374.1,2373.3,8.42687]
[1726590058224,4.21276,2373.8,2373.2,4.21363]
[1726590058453,4.21276,2373.8,2373.1,0.040137]
[1726590058454,8.42614,2373.6,2373.1,4.254027]
[1726590058765,5.08698624,2373.8,2373.2,4.21369]
[1726590058924,4.21301,2373.6,2373.2,4.21369]
[1726590059126,4.21301,2373.6,2373.1,4.253947]
[1726590059463,0.21846686,2373.7,2373.3,4.21352]
[1726590059679,0.21846686,2373.7,2373.5,4.21316]
[1726590059968,4.21301,2373.6,2373.1,4.253897]
[1726590060123,4.21277,2373.8,2373.1,0.040137]
[1726590060338,5.08668624,2374.0,2373.4,4.21327]
[1726590060542,5.44883686,2374.0,2373.5,4.21317]
[1726590060766,1.23640686,2374.0,2373.5,4.21309]
[1726590060938,4.21221,2374.1,2373.6,4.21286]
[1726590061140,8.42448,2374.1,2373.6,4.21286]
[1726590061469,1.31043238,2374.3,2373.1,0.040137]
[1726590061470,5.08609624,2374.3,2373.8,4.21256]
[1726590061638,0.87423624,2374.5,2373.5,4.21315]
[1726590061838,0.87423624,2374.7,2374.2,4.2118]
[1726590062040,5.02619586,2374.7,2374.2,8.42363]
[1726590062331,4.21146,2374.5,2374.0,4.21215]
[1726590062538,4.21179,2374.3,2373.9,4.21247]
[1726590062759,4.2123,2374.0,2373.6,4.21289]
[1726590062960,4.2123,2374.0,2373.4,7.21325]
[1726590062961,0.87423624,2374.6,2373.7,0.08425532]
[1726590063207,0.87423624,2374.8,2374.3,4.21174]
[1726590063393,1.6892741,2374.8,2374.0,4.21222]
[1726590063604,0.87423624,2374.9,2374.2,4.21182]
[1726590063915,0.87423624,2375.0,2374.5,4.21133]
[1726590064061,5.08458624,2375.1,2374.6,4.21115]
[1726590064264,5.08458624,2375.1,2374.5,4.21137]
[1726590064265,2.45421291,2375.0,2374.5,4.21137]
[1726590064496,5.08484624,2375.0,2374.5,4.21137]
[1726590064710,9.29553624,2375.0,2374.4,4.21149]
[1726590065003,7.80216146,2374.9,2374.2,4.21188]
[1726590065188,4.21096,2374.8,2373.8,5.0]
[1726590065511,4.21106,2374.7,2374.2,4.21183]
[1726590065710,4.21106,2374.7,2374.1,4.212]
[1726590065711,4.21128,2374.6,2374.1,4.212]
[1726590066007,4.21128,2374.6,2373.8,4.2125]
[1726590066160,4.21128,2374.6,2373.5,2.0]
[1726590066161,5.08560624,2374.6,2374.0,4.21226]
[1726590066369,0.74393765,2374.5,2374.3,4.21165]
[1726590066703,6.12867416,2374.7,2374.2,4.21193]
[1726590066862,6.12867416,2374.7,2374.1,4.21199]
[1726590066863,1.91757416,2374.7,2374.3,4.21175]
[1726590067063,4.21134,2374.6,2374.1,8.42404]
[1726590067311,0.87423624,2374.9,2374.6,4.21112]
[1726590067475,0.39395786,2374.9,2374.6,4.21122]
[1726590067813,0.87423624,2375.1,2374.8,4.2107]
[1726590068106,1.31043238,2375.2,2374.4,4.21154]
[1726590068107,0.87423624,2375.2,2374.4,4.21154]
[1726590068318,0.87423624,2375.2,2374.9,4.21065]
[1726590068464,1.75490995,2375.5,2374.5,0.08421428]
[1726590068465,0.87423624,2375.3,2375.0,4.21043]
[1726590068666,0.87423624,2375.3,2374.5,0.08421428]
[1726590068667,1.68851207,2375.4,2375.2,4.21]
[1726590068862,0.87423624,2375.5,2375.2,4.21]
[1726590069070,0.87423624,2375.5,2375.3,4.20988]
[1726590069379,0.87423624,2375.6,2375.4,0.05991118]
[1726590069584,0.87423624,2375.7,2375.5,4.20964]
[1726590069780,1.35389109,2376.0,2375.7,4.20928]
[1726590070166,1.35389109,2376.0,2375.8,0.05965389]
[1726590070422,1.35389109,2376.0,2375.7,4.20919]
[1726590070423,0.47965485,2376.0,2375.7,4.20926]
[1726590070623,0.47965485,2376.0,2375.8,4.26844497]
[1726590070845,0.040137,2376.0,2375.8,4.26844497]
[1726590071069,0.040137,2376.0,2375.9,8.50203514]
[1726590071220,0.040137,2376.0,2375.9,15.71096514]
[1726590071426,0.040137,2376.0,2375.9,19.89502389]
[1726590071626,0.040137,2376.0,2375.9,20.97630746]
[1726590071828,0.040137,2376.0,2375.9,25.64721695]
[1726590072066,0.87423624,2377.3,2377.0,4.20684]
[1726590072370,0.30653423,2377.2,2376.4,3.0]
[1726590072524,4.51315423,2377.2,2377.1,0.05864323]
[1726590072871,0.30653423,2377.2,2377.1,0.05668845]
[1726590073021,4.59813883,2377.2,2377.1,0.05668845]
[1726590073226,0.39142883,2377.2,2376.8,4.20721]
[1726590073422,0.0848946,2377.2,2377.1,0.05642251]
[1726590073762,0.0848946,2377.2,2376.9,4.20705]
[1726590073962,0.0848946,2377.2,2377.1,0.05642251]
[1726590074186,0.0848946,2377.2,2377.1,4.2068]
[1726590074394,0.0848946,2377.2,2377.1,4.26322251]
[1726590075299,0.0848946,2377.2,2377.1,8.47002251]
[1726590075768,0.0848946,2377.2,2377.1,4.26322251]
[1726590076157,0.0848946,2377.2,2377.1,8.47002251]
[1726590076790,0.0848946,2377.2,2377.1,10.47002251]
[1726590078398,0.0848946,2377.2,2377.1,0.05642251]
[1726590079554,0.0848946,2377.2,2377.1,8.47002251]
[1726590080459,0.0848946,2377.2,2377.1,4.26322251]
[1726590081075,0.0848946,2377.2,2377.1,4.34734829]
[1726590081286,0.0848946,2377.2,2377.1,8.55414829]
[1726590081496,0.0848946,2377.2,2377.1,8.47002251]
[1726590081676,0.0848946,2377.2,2377.1,15.67682251]
[1726590081882,0.0848946,2377.2,2377.1,16.22682251]
[1726590082411,0.0848946,2377.2,2377.1,15.67682251]
[1726590082706,0.0848946,2377.2,2377.1,11.47002251]
[1726590084464,0.0848946,2377.2,2377.1,17.67682251]
[1726590085075,0.0848946,2377.2,2377.1,18.69685608]
[1726590085623,0.0848946,2377.2,2377.1,17.67682251]
[1726590086518,0.0848946,2377.2,2377.1,11.47002251]
[1726590086821,0.0848946,2377.2,2377.1,17.67682251]
[1726590087021,0.0848946,2377.2,2377.1,13.47002251]
[1726590087182,0.0848946,2377.2,2377.1,7.26322251]
[1726590087367,0.0848946,2377.2,2377.1,4.26322251]
[1726590087764,0.0848946,2377.2,2377.1,8.47002251]
[1726590088807,0.0848946,2377.2,2377.1,11.47002251]
[1726590089145,0.0848946,2377.2,2377.1,15.67682251]
[1726590091225,0.0848946,2377.2,2377.1,11.47002251]
[1726590093049,0.0848946,2377.2,2377.1,15.67682251]
[1726590093214,0.0848946,2377.2,2377.1,16.20627275]
[1726590094323,0.0848946,2377.2,2377.1,11.47002251]
[1726590094637,0.0848946,2377.2,2377.1,15.67682251]
[1726590095042,0.0848946,2377.2,2377.1,16.20627275]
[1726590095197,0.0848946,2377.2,2377.1,20.41307275]
[1726590095419,0.0848946,2377.2,2377.1,20.96307275]
[1726590095763,0.0848946,2377.2,2377.1,25.16987275]
[1726590096120,0.0848946,2377.2,2377.1,33.65873224]
[1726590096453,0.0848946,2377.2,2377.1,33.19675275]
[1726590096757,0.0848946,2377.2,2377.1,25.16987275]
[1726590096958,0.0848946,2377.2,2377.1,34.03013275]
[1726590097269,0.0848946,2377.2,2377.1,35.57066338]
[1726590097416,0.0397148,2378.3,2378.2,8.40972]
[1726590097615,0.0397148,2378.3,2378.2,11.49379637]
[1726590097853,0.0397148,2378.3,2378.2,0.0514354]
[1726590098070,0.0397148,2378.3,2378.2,8.4611554]
[1726590098361,0.0397148,2378.3,2378.2,8.40972]
[1726590098658,0.0397148,2378.3,2378.2,4.2562954]
[1726590098815,0.0397148,2378.3,2378.2,0.0514354]
[1726590099021,0.0397148,2378.3,2378.2,8.4611554]
[1726590099747,0.0397148,2378.3,2378.2,4.2562954]
[1726590100118,0.0397148,2378.3,2378.2,0.0514354]
[1726590100571,0.0397148,2378.3,2378.2,4.2562954]
[1726590100895,0.0397148,2378.3,2378.2,8.4611554]
[1726590102197,0.0397148,2378.3,2378.2,4.2562954]
[1726590102700,0.0397148,2378.3,2378.2,8.4611554]
[1726590103211,0.0397148,2378.3,2378.2,11.4611554]
[1726590103709,0.0397148,2378.3,2378.2,15.6660154]
[1726590103922,0.0397148,2378.3,2378.2,17.6660154]
[1726590104117,0.0397148,2378.3,2378.2,18.19546564]
[1726590104338,0.0397148,2378.3,2378.2,13.99060564]
[1726590104498,0.0397148,2378.3,2378.2,17.6660154]
[1726590104917,0.0397148,2378.3,2378.2,22.40032564]
[1726590105288,0.0397148,2378.3,2378.2,22.95032564]
[1726590105596,0.0397148,2378.3,2378.2,44.21009364]
[1726590105987,0.0397148,2379.0,2378.9,18.16086]
[1726590106285,0.0397148,2379.0,2378.9,13.45779692]
[1726590106486,0.0397148,2379.0,2378.9,0.05055692]
[1726590106689,4.2431548,2379.0,2378.9,0.05055692]
[1726590107012,4.66750028,2379.0,2378.5,4.20423]
[1726590107212,8.87106028,2379.0,2378.9,0.04690151]
[1726590107427,4.66750028,2379.0,2378.5,4.20431]
[1726590107587,4.66750028,2379.0,2378.5,8.40855]
[1726590107788,4.66750028,2379.0,2378.6,0.04700508]
[1726590108034,0.0397148,2379.0,2378.8,4.2037]
[1726590108235,0.0397148,2379.0,2378.9,8.40724]
[1726590108535,0.0397148,2379.0,2378.9,4.25052151]
[1726590108722,0.0397148,2379.0,2378.9,8.45414151]
[1726590109119,0.0397148,2379.0,2378.9,8.53819838]
[1726590109287,0.0397148,2379.0,2378.9,8.45414151]
[1726590109904,0.0397148,2379.0,2378.9,0.04690151]
[1726590110107,0.0397148,2379.0,2378.5,4.20427]
[1726590110336,0.0397148,2379.0,2378.9,0.04690151]
[1726590110495,0.0397148,2379.0,2378.7,4.20385]
[1726590110693,0.0397148,2379.0,2378.9,0.04690151]
[1726590110945,0.0397148,2379.0,2378.8,0.04693603]
[1726590111102,4.2431548,2379.0,2378.9,0.04690151]
[1726590111433,4.20367,2378.9,2378.3,4.20456]
[1726590111642,0.46403028,2379.0,2378.4,4.20436]
[1726590111791,4.66757028,2379.0,2378.4,4.20436]
[1726590112196,4.66748028,2379.0,2378.5,4.20422]
[1726590112422,0.0397148,2379.0,2378.5,4.20422]
[1726590113129,0.0397148,2379.0,2378.5,8.40845]
[1726590113306,0.0397148,2379.0,2378.5,4.20422]
[1726590113708,0.0397148,2379.0,2378.6,4.204]
[1726590113909,0.0397148,2379.0,2378.2,4.20482]
[1726590114124,0.0397148,2379.0,2378.5,4.20417]
[1726590114439,4.20399,2378.7,2378.2,4.20482]
[1726590114648,4.2431648,2379.0,2378.5,4.20432]
[1726590114798,0.0397148,2379.0,2378.7,4.20391]
[1726590115145,0.0397148,2379.0,2378.7,4.20386]
[1726590115578,0.0397148,2379.0,2378.6,4.20411]
[1726590115882,0.0397148,2379.0,2378.7,4.20397]
[1726590116061,0.0397148,2379.0,2378.9,4.20362]
[1726590116375,0.0397148,2379.0,2378.6,4.20414]
[1726590116568,0.0397148,2379.0,2378.9,0.04715402]
[1726590116778,0.0397148,2379.0,2378.7,4.20393]
[1726590116981,0.0397148,2379.0,2378.9,0.04740652]
[1726590117125,0.0397148,2379.0,2378.8,4.25123104]
[1726590117322,0.0397148,2379.0,2378.9,0.04740652]
[1726590117948,0.0397148,2379.0,2378.7,4.20389]
[1726590118126,0.0397148,2379.0,2378.9,0.04740652]
[1726590118500,0.0397148,2379.0,2378.8,8.45491104]
[1726590118628,0.0397148,2379.0,2378.9,0.04740652]
[1726590118831,0.0397148,2379.0,2378.9,8.45464652]
[1726590119282,0.0397148,2379.0,2378.9,11.45464652]
[1726590120497,0.0397148,2379.0,2378.9,0.04740652]
[1726590120669,8.4465948,2379.0,2378.9,0.04740652]
[1726590120992,8.4465948,2379.0,2377.9,6.20528]
[1726590120993,0.9717979,2379.0,2378.0,4.2052]
[1726590121302,0.9717979,2379.0,2378.4,4.20438]
[1726590121303,4.2431648,2379.0,2378.4,4.20438]
[1726590121469,4.20383,2378.8,2378.4,4.20438]
[1726590121658,4.20383,2378.8,2378.5,0.04744685]
[1726590121858,0.87423624,2378.9,2378.5,0.04744685]
[1726590122090,4.20387,2378.8,2378.5,0.04744685]
[1726590122287,1.09667458,2378.9,2378.5,0.04744685]
[1726590122449,5.07838624,2378.6,2377.5,2.0]
[1726590122653,0.87423624,2378.6,2378.2,4.20485]
[1726590122898,0.87423624,2378.6,2378.3,0.04751592]
[1726590122899,5.07839624,2378.6,2378.3,0.04751592]
[1726590123102,0.87423624,2378.7,2378.3,4.25218592]
[1726590123305,0.87423624,2378.7,2378.3,4.20467]
[1726590123485,0.87423624,2378.7,2378.4,0.04748138]
[1726590124007,5.07798624,2378.9,2378.5,4.2043]
[1726590124184,4.20383,2378.8,2378.4,0.04748138]
[1726590124394,4.20425,2378.6,2378.1,4.2049]
[1726590124559,2.45290943,2378.7,2378.1,4.2049]
[1726590124560,5.07823624,2378.7,2378.2,4.20476]
[1726590125001,0.87423624,2378.7,2378.2,4.20476]
[1726590125199,5.07828624,2378.7,2378.2,8.40949]
[1726590125409,4.20425,2378.6,2378.1,7.20493]
[1726590125557,5.07848624,2378.6,2378.1,7.20493]
[1726590125957,0.87423624,2378.6,2378.2,4.20486]
[1726590126159,0.87423624,2378.6,2378.1,7.20501]
[1726590126473,2.45315812,2378.5,2378.1,7.20501]
[1726590126670,5.07867624,2378.5,2377.9,4.20533]
[1726590126879,2.45306633,2378.4,2378.0,4.2052]
[1726590127076,0.87423624,2378.4,2378.0,8.41029]
[1726590127310,0.87423624,2378.4,2378.0,4.20509]
[1726590127606,4.20504,2378.1,2377.6,4.20578]
[1726590127791,4.20504,2378.1,2377.6,8.4116]
[1726590127973,4.20539,2377.9,2377.5,4.20593]
[1726590128179,4.20574,2377.7,2377.3,4.20636]
[1726590128393,5.07981624,2377.8,2377.3,4.20636]
[1726590128593,0.87423624,2377.8,2377.4,4.20625]
[1726590128900,0.87423624,2377.9,2377.3,4.20632]
[1726590129218,5.07980624,2377.8,2377.4,4.20617]
[1726590129381,2.45359844,2377.7,2377.4,4.20617]
[1726590129584,0.87423624,2377.8,2377.5,4.20602]
[1726590129913,5.07962624,2377.9,2377.5,4.20602]
[1726590130113,2.45387059,2377.8,2377.3,3.0]
[1726590130320,0.87423624,2378.0,2377.8,4.20556]
[1726590130534,2.18466862,2378.2,2378.0,4.20513]
[1726590130811,0.87423624,2378.2,2377.9,8.41067]
[1726590130978,0.87423624,2378.2,2378.0,4.20519]
[1726590131180,0.87423624,2378.2,2377.9,4.20536]
[1726590131371,0.87423624,2378.2,2378.1,0.04778872]
[1726590131567,5.07904389,2378.2,2378.0,0.04782327]
[1726590131817,18.74842766,2378.1,2378.0,0.04782327]
[1726590131970,5.43421621,2378.1,2377.7,4.20573]
[1726590132314,0.87395933,2377.9,2377.8,0.04629825]
[1726590132616,2.45405229,2377.9,2377.7,4.20572]
[1726590132816,2.45405229,2377.9,2377.3,3.0]
[1726590132817,5.07956451,2377.9,2377.8,0.04629825]
[1726590132977,11.3013335,2377.9,2377.8,0.04629825]
[1726590133309,11.3013335,2377.9,2377.4,4.2062]
[1726590133310,11.58298236,2377.9,2377.4,4.2062]
[1726590133517,2.45376166,2377.8,2377.5,4.20597]
[1726590133672,2.45376166,2377.8,2377.5,8.45893615]
[1726590133673,0.87414716,2377.8,2377.5,8.45893615]
[1726590134013,0.87414716,2377.8,2377.6,4.20589]
[1726590134521,1.31122074,2377.8,2377.7,0.04688704]
[1726590134718,2.45423485,2377.8,2377.7,0.04688704]
[1726590135023,1.5799422,2377.8,2377.7,0.04688704]
[1726590135183,1.31122074,2377.8,2377.7,0.04688704]
[1726590135527,2.4540864,2377.8,2377.7,4.25262704]
[1726590135688,2.4540864,2377.8,2377.7,0.04688704]
[1726590136212,4.20575,2377.7,2377.3,4.20634]
[1726590136420,4.20619,2377.5,2377.0,4.20682]
[1726590136627,4.20671,2377.2,2376.5,4.2077]
[1726590136768,6.6595499,2377.1,2376.6,4.20753]
[1726590136974,0.87389972,2377.1,2376.1,2.0397148]
[1726590137176,0.87389972,2377.2,2377.0,4.20686]
[1726590137476,0.87389972,2377.2,2376.2,0.52945024]
[1726590137787,0.21851205,2377.1,2376.8,8.41448]
[1726590137995,0.87389972,2377.2,2376.7,4.20748]
[1726590138187,2.45188479,2377.2,2376.8,4.2072]
[1726590138521,4.20688,2377.1,2376.6,4.20759]
[1726590138688,4.20703,2377.0,2376.6,4.20759]
[1726590139011,0.92878097,2377.0,2376.6,4.20759]
[1726590139187,1.80268069,2377.0,2376.6,8.41518]
[1726590139399,5.51810074,2377.1,2376.6,8.41518]
[1726590139400,0.87389972,2377.1,2376.6,4.20754]
[1726590139600,0.87389972,2377.2,2376.7,0.03930775]
[1726590139823,0.87389972,2377.3,2377.0,8.41386]
[1726590139987,5.51732074,2377.5,2377.1,4.2067]
[1726590139988,0.87389972,2377.4,2377.1,4.2067]
[1726590140182,0.87389972,2377.4,2377.2,4.20659]
[1726590140428,0.87389972,2377.5,2377.2,4.20653]
[1726590140638,5.95377512,2377.7,2377.3,4.24550031]
[1726590140639,0.87389972,2377.7,2377.3,4.24550031]
[1726590140928,2.45103896,2377.7,2377.4,4.20617]
[1726590141129,0.87389972,2377.7,2377.5,4.20609]
[1726590141431,0.87389972,2377.7,2377.5,0.03924296]
[1726590142149,2.45099376,2377.6,2377.5,0.03924296]
[1726590142432,6.65691376,2377.6,2377.5,0.03924296]
[1726590142601,4.20618,2377.5,2377.0,4.20695]
[1726590142814,5.07875671,2377.5,2377.0,4.20695]
[1726590143618,4.20636,2377.4,2377.0,4.20695]
[1726590143806,5.07875671,2377.5,2376.9,7.20714]
[1726590143807,5.02079873,2377.3,2376.9,7.20714]
[1726590144003,5.02079873,2377.3,2376.8,4.20716]
[1726590144205,5.02079873,2377.3,2376.9,4.20713]
[1726590144996,0.81434873,2377.3,2377.0,4.20688]
[1726590145192,0.87257671,2377.5,2377.0,4.20688]
[1726590145409,0.87257671,2377.5,2376.5,3.0]
[1726590145410,0.87257671,2377.6,2377.1,4.2067]
[1726590145648,5.07832671,2377.7,2377.3,4.20645]
[1726590145993,5.07832671,2377.7,2377.1,4.20664]
[1726590146317,5.89207597,2377.7,2377.2,4.24587665]
[1726590146891,4.20598,2377.6,2377.2,4.24587665]
[1726590147440,1.68632597,2377.7,2377.2,4.24587665]
[1726590147441,5.89215597,2377.7,2377.2,4.24587665]
[1726590147935,4.20599,2377.6,2377.2,4.24587665]
[1726590148134,5.01951926,2377.7,2377.2,4.24587665]
[1726590148346,1.0097756,2377.6,2377.2,0.03934665]
[1726590148509,4.20645,2377.3,2376.8,4.20725]
[1726590148706,4.20664,2377.2,2376.8,4.20725]
[1726590149742,0.87257671,2377.4,2376.4,3.0]
[1726590149894,0.87257671,2377.6,2377.0,4.20688]
[1726590150094,0.30591659,2377.5,2377.0,8.41377]
[1726590150329,4.2064,2377.4,2377.0,4.20688]
[1726590150492,8.41243,2377.5,2377.0,4.20688]
[1726590150836,4.20642,2377.4,2376.8,4.20719]
[1726590150993,4.20649,2377.3,2376.7,4.20746]
[1726590151193,4.20671,2377.2,2376.7,4.20746]
[1726590152339,4.20683,2377.1,2376.6,8.4151]
[1726590152642,0.420683,2377.0,2376.6,4.20751]
[1726590152839,0.420683,2377.0,2376.7,4.2075]
[1726590153067,4.20645,2377.3,2376.8,4.20721]
[1726590153353,5.71791746,2377.4,2376.9,4.20706]
[1726590153643,0.70291382,2377.3,2376.9,4.20706]
[1726590153846,4.90944382,2377.3,2376.8,4.20721]
[1726590153996,4.20685,2377.1,2376.6,4.20756]
[1726590154338,0.420685,2377.0,2376.6,8.41514]
[1726590154635,4.20685,2377.1,2376.6,4.20756]
[1726590155140,4.20665,2377.2,2376.7,4.20749]
[1726590155293,5.78195053,2377.3,2376.8,4.20727]
[1726590155496,5.78195053,2377.3,2376.9,4.20716]
[1726590155695,0.70291382,2377.3,2376.9,8.41424]
[1726590155946,0.87257671,2377.4,2377.0,4.20689]
[1726590156098,5.07869671,2377.5,2377.0,4.20689]
[1726590156297,9.28493671,2377.5,2377.0,4.20689]
[1726590156502,4.20636,2377.4,2376.9,8.41421]
[1726590156703,5.26598774,2377.4,2376.9,4.20708]
[1726590156918,1.05962774,2377.4,2377.0,4.20694]
[1726590157210,1.05962774,2377.4,2377.0,4.2069]
[1726590157416,5.07853671,2377.6,2377.1,4.20678]
[1726590157637,5.07853671,2377.6,2377.0,4.20696]
[1726590157836,5.07852671,2377.6,2377.1,4.20673]
[1726590158563,5.51812628,2377.7,2377.2,4.20661]
[1726590158713,6.3668731,2377.7,2377.2,4.20661]
[1726590158908,6.3668731,2377.7,2377.4,4.2062]
[1726590158909,0.87257671,2377.7,2377.4,4.2062]
[1726590159119,5.07814671,2377.8,2377.3,4.20641]
[1726590159426,6.65186442,2377.7,2377.2,4.20653]
[1726590159630,6.13785146,2377.7,2377.2,4.20653]
[1726590160251,6.13785146,2377.7,2377.3,4.20644]
[1726590160466,1.93206146,2377.7,2377.3,4.20644]
[1726590160646,0.87257671,2377.7,2377.2,4.20651]
[1726590160844,0.87257671,2377.7,2377.3,4.20636]
[1726590161038,5.07832671,2377.7,2377.2,4.20659]
[1726590161231,5.51689074,2377.8,2377.0,4.20686]
[1726590161232,6.65232514,2377.6,2377.0,4.20686]
[1726590161415,6.65232514,2377.6,2377.3,0.07943055]
[1726590161416,4.20627,2377.4,2377.3,0.07943055]
[1726590161627,4.20627,2377.4,2376.8,4.20717]
[1726590161628,4.20653,2377.3,2376.8,8.4144]
[1726590161857,4.20653,2377.3,2376.8,4.20731]
[1726590162067,6.65318804,2377.2,2376.7,8.41487]
[1726590162232,5.58719738,2377.2,2376.7,4.20742]
[1726590162421,5.58719738,2377.2,2376.8,4.20733]
[1726590162822,1.38048738,2377.2,2376.8,4.20733]
[1726590163266,5.58715738,2377.2,2376.7,4.20736]
[1726590163460,0.68982381,2377.1,2376.7,4.20736]
[1726590163671,1.56240052,2377.1,2376.7,4.20736]
[1726590163835,1.56240052,2377.1,2376.6,4.20753]
[1726590164033,0.87257671,2377.1,2376.7,4.20746]
[1726590164271,1.38048738,2377.2,2376.8,4.20733]
[1726590165107,2.18379745,2377.3,2377.1,4.2068]
[1726590165260,2.18379745,2377.3,2376.5,0.55]
[1726590165261,5.07877671,2377.5,2376.7,3.0]
[1726590165468,2.44916326,2377.4,2377.0,4.20685]
[1726590165805,2.44938041,2377.3,2377.1,4.20678]
[1726590165981,0.87257671,2377.3,2377.1,4.20671]
[1726590166304,0.87257671,2377.4,2377.2,4.2065]
[1726590167009,0.87257671,2377.4,2376.9,4.20698]
[1726590167010,0.87257671,2377.3,2376.9,4.20698]
[1726590167161,0.87257671,2377.2,2377.0,4.20687]
[1726590168305,1.63373075,2377.2,2376.7,4.20738]
[1726590168474,0.87257671,2377.0,2376.7,4.20738]
[1726590168660,1.31122074,2377.1,2376.7,4.20738]
[1726590168661,2.45018254,2376.9,2376.7,4.20738]
[1726590168861,0.87257671,2377.0,2376.8,4.20733]
[1726590169098,0.87257671,2377.0,2376.7,4.20738]
[1726590169304,2.44986799,2377.0,2376.9,0.07944753]
[1726590169509,2.45193473,2377.0,2376.8,4.28682163]
[1726590169664,1.31122074,2377.0,2376.9,4.28660753]
[1726590169864,0.87468196,2377.0,2376.9,4.28660753]
[1726590170291,1.31122074,2377.1,2376.9,4.28660753]
[1726590170581,1.31122074,2377.0,2376.9,4.28660753]
[1726590171095,0.87493126,2377.0,2376.9,4.28660753]
[1726590171405,2.45266691,2377.0,2376.9,4.28660753]
[1726590171573,1.31122074,2377.0,2376.9,8.49376753]
[1726590171761,2.45314862,2377.0,2376.9,8.49376753]